fUST/lending_fUST_20251224
["ID","MTS","AMOUNT","RATE_DAILY","PERIOD"]
[399629157,1766573438809,-500.0,0.00010264,2]
[399629159,1766573438819,-500.0,0.00010264,2]
[399629161,1766573438829,-500.0,0.00010264,2]
[399629162,1766573438839,-500.0,0.00010264,2]
[399629164,1766573438849,-520.14083837,0.00010264,2]
[399629166,1766573438859,-500.0,0.00010264,2]
[399629168,1766573438869,-500.0,0.00010264,2]
[399629170,1766573438878,-500.0,0.00010264,2]
[399629172,1766573438888,-168.08691256,0.00010264,2]
[399629174,1766573438899,-500.0,0.00010264,2]
[399629176,1766573438909,-500.0,0.00010264,2]
[399629178,1766573438918,-500.0,0.00010264,2]
[399629180,1766573438930,-500.0,0.00010264,2]
[399629182,1766573438939,-430.0,0.00010264,2]
[399629184,1766573438949,-234.72091311,0.00010264,2]
[399629186,1766573438960,-2997.83986905,0.00010265,2]
[399629188,1766573438972,-3199.83174743,0.00010265,2]
[399629191,1766573438996,-565.13643423,0.00010265,2]
[399629193,1766573439008,-1733.72171815,0.00010265,2]
[399629320,1766573440652,-12627.41041274,0.00010265,2]
[399629322,1766573440669,-277.95,0.0001039,2]
[399629324,1766573440680,-230.99845881,0.0001079,2]
[399629326,1766573440691,-1680.0,0.00011288,2]
[399629328,1766573440700,-9726.4262542,0.00011947,2]
[399629330,1766573440717,-2798.7452364,0.00011947,2]
[399629332,1766573440728,-2545.5958875,0.00011947,2]
[399629334,1766573440739,-500.0,0.00012054,2]
[399629336,1766573440749,-261.57178424,0.0001279,2]
[399629338,1766573440759,-193.4487629,0.00012933,2]
[399629340,1766573440769,-1887.82297531,0.0001295,2]
[399629343,1766573440779,-97.77176761,0.00013031,2]
[399629661,1766573443801,-402.22823239,0.00013031,2]
[399629663,1766573443811,-1148.42809114,0.00013031,2]
[399629666,1766573443821,-482.79304153,0.00013031,2]
[399629668,1766573443832,-1148.42809114,0.00013031,2]
[399629670,1766573443842,-1148.42809114,0.00013031,2]
[399629672,1766573443852,-1148.42809114,0.00013031,2]
[399629674,1766573443862,-429.64271044,0.00013031,2]
[399629684,1766573443960,-718.7853807,0.00013031,2]
[399629686,1766573443971,-1058.2090875,0.00013031,2]
[399629691,1766573444015,-90.21900364,0.00013031,2]
[399629696,1766573444031,-209.78099636,0.00013031,2]
[399629925,1766573446599,-938.64709478,0.00013031,2]
[399629927,1766573446609,-1148.42809114,0.00013031,2]
[399629929,1766573446619,-1148.42809114,0.00013031,2]
[399629931,1766573446629,-307.34002853,0.00013031,2]
[399629933,1766573446640,-1146.42872798,0.00013031,2]
[399630099,1766573701546,1000.68532872,0.00025,120]
[399630100,1766573732507,1000.0,0.00032877,120]
[399630101,1766573742312,1000.0,0.00032877,120]
[399630102,1766573750806,500.0,0.00032877,120]
[399630104,1766573795282,1000.0,0.00032877,120]
[399630113,1766573957808,500.0,0.00032876,120]
[399630120,1766574000042,500.0,0.00032877,120]
[399630130,1766574027892,500.0,0.00032877,120]
[399630131,1766574055486,348.11,0.00032877,120]
[399630245,1766574632402,-404.99468187,6.995e-05,2]
[399630246,1766574632415,-114.00531813,6.995e-05,2]
[399630247,1766574632425,-162.13751233,7.078e-05,2]
[399630248,1766574632435,-150.0,7.107e-05,2]
[399630249,1766574632445,-150.0,7.753e-05,2]
[399630250,1766574632455,-150.0,8.399e-05,2]
[399630251,1766574632464,-148.49535361,9.045e-05,2]
[399630252,1766574632487,-1.50464639,9.045e-05,2]
[399630253,1766574632497,-191.32226455,9.078e-05,2]
[399630254,1766574632506,-150.0,9.691e-05,2]
[399630255,1766574632516,-484.03803442,0.00010194,2]
[399630288,1766574637771,-278.17186249,0.00010194,2]
[399630290,1766574637782,-216.8370828,0.00010811,2]
[399630291,1766574637791,-416.0,0.0001105,2]
[399630294,1766574637801,-220.50701677,0.00011078,2]
[399630296,1766574637811,-431.0,0.00011389,2]
[399630298,1766574637821,-300.0,0.00011389,2]
[399630300,1766574637831,-114.2562854,0.00011389,2]
[399630302,1766574637844,-415.7437146,0.00011389,2]
[399630304,1766574637853,-781.9744084,0.0001139,2]
[399630306,1766574637863,-3056.5073567,0.0001139,2]
[399630308,1766574637873,-984.95214532,0.0001139,2]
[399630527,1766574639821,-877.26045449,0.0001139,2]
[399630531,1766574639834,-792.29669679,0.0001139,2]
[399630534,1766574639843,-107.70330321,0.00012054,2]
[399630541,1766574639875,-392.29669679,0.00012054,2]
[399630544,1766574639885,-739.34092165,0.00012668,2]
[399630817,1766574642886,-272.83182917,0.00012668,2]
[399630832,1766574643046,-875.65022449,0.00012668,2]
[399630834,1766574643056,-193.4487629,0.00012698,2]
[399630836,1766574643067,-2490.9524623,0.000127,2]
[399630838,1766574643079,-4292.93459236,0.000127,2]
[399630840,1766574643088,-88.60463809,0.00012791,2]
[399630842,1766574643100,-411.39536191,0.00012791,2]
[399630845,1766574643110,-500.0,0.00012791,2]
[399630847,1766574643120,-500.0,0.00012791,2]
[399630849,1766574643130,-500.0,0.00012791,2]
[399630851,1766574643140,-500.0,0.00012791,2]
[399630853,1766574643149,-500.0,0.00012791,2]
[399630855,1766574643159,-500.0,0.00012791,2]
[399630856,1766574643169,-416.90682747,0.00012791,2]
[399630858,1766574643179,-500.0,0.00012791,2]
[399630860,1766574643191,-500.0,0.00012791,2]
[399630862,1766574643201,-226.64906524,0.00012791,2]
[399630864,1766574643210,-283.0422515,0.00012791,2]
[399630866,1766574643220,-620.09815267,0.00012791,2]
[399630868,1766574643230,-500.0,0.00012791,2]
[399630870,1766574643239,-500.0,0.00012791,2]
[399630872,1766574643249,-500.0,0.00012791,2]
[399630874,1766574643258,-500.0,0.00012791,2]
[399630876,1766574643269,-500.0,0.00012791,2]
[399630878,1766574643279,-500.0,0.00012791,2]
[399630879,1766574643288,-384.26745863,0.00012791,2]
[399630881,1766574643298,-500.0,0.00012791,2]
[399630883,1766574643307,-266.11918719,0.00012791,2]
[399630886,1766574643327,-233.88081281,0.00012791,2]
[399630888,1766574643337,-500.0,0.00012791,2]
[399630890,1766574643346,-500.0,0.00012791,2]
[399630892,1766574643356,-500.0,0.00012791,2]
[399630894,1766574643366,-500.0,0.00012791,2]
[399630896,1766574643376,-500.0,0.00012791,2]
[399630898,1766574643386,-500.0,0.00012791,2]
[399630899,1766574643395,-565.13801997,0.00012798,2]
[399630901,1766574643405,-3145.90646214,0.00012798,2]
[399630903,1766574643414,-426.53895503,0.00012798,2]
[399630905,1766574643423,-3145.90646214,0.00012798,2]
[399630907,1766574643433,-3145.90646214,0.00012798,2]
[399630909,1766574643443,-3145.90646214,0.00012798,2]
[399630911,1766574643452,-1267.76631614,0.00012798,2]
[399630985,1766574644220,-1878.140146,0.00012798,2]
[399630987,1766574644229,-2204.37079278,0.00012798,2]
[399631140,1766574645746,-941.53566936,0.00012798,2]
[399631142,1766574645757,-470.41790253,0.00012798,2]
[399631144,1766574645770,-2675.48855961,0.00012798,2]
[399631146,1766574645779,-3145.90646214,0.00012798,2]
[399631148,1766574645789,-3145.90646214,0.00012798,2]
[399631150,1766574645799,-3145.90646214,0.00012798,2]
[399631151,1766574645808,-3145.90646214,0.00012798,2]
[399631152,1766574645818,-167.32607391,0.00012798,2]
[399631153,1766574645906,-1437.1938843,0.00012798,2]
[399631192,1766574908320,171.0,0.00030655,120]
[399631193,1766574909605,171.0,0.00032187,120]
[399631195,1766574930256,165.0,0.00029031,120]
[399631199,1766575040146,-150.0,7.97e-05,2]
[399631200,1766575040170,-150.0,8.332e-05,2]
[399631204,1766575084739,442.519484,0.00030137,120]
[399631205,1766575144601,1004.15,0.00032877,120]
[399631207,1766575207432,172.0,0.00030664,120]
[399631208,1766575208666,172.0,0.00032197,120]
[399631209,1766575252942,300.0,0.00032877,120]
[399631217,1766575343498,161.0,0.000328,120]
[399631258,1766575433362,218.88295573,0.00022869,120]
[399631283,1766575561530,-152.92205441,7.885e-05,2]
[399631284,1766575561555,-379.07794559,7.993e-05,2]
[399631285,1766575561585,-152.92205441,7.993e-05,2]
[399631286,1766575561611,-22.06794559,8.002e-05,2]
[399631289,1766575593461,700.0,0.00032877,120]
[399631306,1766575687112,160.0,0.00032877,120]
[399631314,1766575743185,160.21,0.00032877,120]
[399631342,1766575831745,-150.0,7.763e-05,2]
[399631343,1766575831760,-529.0,7.763e-05,2]
[399631344,1766575831771,-150.0,8.388e-05,2]
[399631345,1766575831781,-150.0,8.468e-05,2]
[399631346,1766575831791,-150.0,9.174e-05,2]
[399631347,1766575831800,-150.0,9.88e-05,2]
[399631348,1766575831810,-177.0,0.00010388,2]
[399631349,1766575831820,-150.0,0.00010586,2]
[399631350,1766575831830,-150.0,0.00011291,2]
[399631351,1766575831839,-249.01,0.000116,2]
[399631352,1766575831849,-416.0,0.00011658,2]
[399631353,1766575831859,-274.0,0.00011826,2]
[399631354,1766575831869,-510.0,0.00011826,2]
[399631355,1766575831879,-458.45491415,0.00011827,2]
[399631356,1766575831889,-825.21884547,0.00011827,2]
[399631357,1766575831899,-1467.05572528,0.00011827,2]
[399631358,1766575831924,-2292.27457076,0.00011827,2]
[399631359,1766575831938,-3297.57450651,0.00011827,2]
[399631360,1766575831949,-150.0,0.00011997,2]
[399631361,1766575831960,-500.0,0.00012054,2]
[399631362,1766575831970,-204.0,0.00012388,2]
[399631363,1766575831981,-247.74650712,0.0001245,2]
[399631364,1766575831992,-445.94371282,0.0001245,2]
[399631365,1766575832002,-792.7888228,0.0001245,2]
[399631366,1766575832013,-1237.49380308,0.0001245,2]
[399631367,1766575832023,-500.0,0.00012494,2]
[399631368,1766575832035,-500.0,0.00012494,2]
[399631369,1766575832046,-285.59183114,0.00012494,2]
[399631370,1766575832060,-214.40816886,0.00012494,2]
[399631371,1766575832070,-500.0,0.00012494,2]
[399631372,1766575832464,-500.0,0.00012631,2]
[399631373,1766575832476,-139.91530066,0.00012631,2]
[399631374,1766575832508,-360.08469934,0.00012631,2]
[399631375,1766575832519,-151.61955493,0.00012631,2]
[399631405,1766575837879,-500.0,0.00012494,2]
[399631407,1766575837889,-150.0,0.00012494,2]
[399631409,1766575837899,-150.0,0.00012494,2]
[399631411,1766575837910,-348.38044507,0.00012631,2]
[399631413,1766575837920,-500.0,0.00012631,2]
[399631415,1766575837930,-500.0,0.00012631,2]
[399631417,1766575837940,-150.0,0.00012631,2]
[399631419,1766575837950,-834.1735167,0.000127,2]
[399631421,1766575837960,-440.11586385,0.00012761,2]
[399631423,1766575837970,-250.0,0.00012761,2]
[399631425,1766575837980,-250.0,0.00012761,2]
[399631427,1766575837990,-201.93286099,0.00012761,2]
[399631429,1766575838000,-250.0,0.00012761,2]
[399631432,1766575838010,-88.2464148,0.00012761,2]
[399631436,1766575838022,-161.7535852,0.00012761,2]
[399631439,1766575838033,-250.0,0.00012761,2]
[399631441,1766575838043,-250.0,0.00012761,2]
[399631444,1766575838053,-88.2464148,0.00012761,2]
[399631446,1766575838072,-161.7535852,0.00012761,2]
[399631448,1766575838082,-250.0,0.00012761,2]
[399631451,1766575838093,-250.0,0.00012761,2]
[399631453,1766575838104,-250.0,0.00012761,2]
[399631455,1766575838114,-250.0,0.00012761,2]
[399631457,1766575838124,-151.0,0.00012761,2]
[399631459,1766575838135,-250.0,0.00012761,2]
[399631461,1766575838144,-250.0,0.00012761,2]
[399631463,1766575838154,-84.18792408,0.00012761,2]
[399631608,1766575840093,-174.89884645,0.00012761,2]
[399631610,1766575840103,-553.64373807,0.00012761,2]
[399631612,1766575840114,-250.0,0.00012761,2]
[399631614,1766575840124,-250.0,0.00012761,2]
[399631616,1766575840135,-250.0,0.00012761,2]
[399631618,1766575840145,-250.0,0.00012761,2]
[399631620,1766575840155,-250.0,0.00012761,2]
[399631622,1766575840165,-250.0,0.00012761,2]
[399631624,1766575840177,-250.0,0.00012761,2]
[399631626,1766575840188,-250.0,0.00012761,2]
[399631628,1766575840198,-250.0,0.00012761,2]
[399631630,1766575840208,-250.0,0.00012761,2]
[399631632,1766575840218,-250.0,0.00012761,2]
[399631634,1766575840228,-151.0,0.00012761,2]
[399631636,1766575840239,-500.0,0.00012768,2]
[399631638,1766575840249,-502.01785239,0.00012768,2]
[399631640,1766575840260,-500.0,0.00012768,2]
[399631643,1766575840270,-500.0,0.00012768,2]
[399631644,1766575840280,-500.0,0.00012768,2]
[399631647,1766575840291,-500.0,0.00012768,2]
[399631648,1766575840300,-200.0,0.00012768,2]
[399631650,1766575840310,-246.679636,0.00012768,2]
[399631652,1766575840320,-246.679636,0.00012768,2]
[399631656,1766575840344,-246.679636,0.00012768,2]
[399631658,1766575840357,-246.679636,0.00012768,2]
[399631660,1766575840369,-298.57726852,0.00012768,2]
[399631663,1766575840380,-395.59661398,0.00012768,2]
[399631665,1766575840391,-2783.81155173,0.00012768,2]
[399631667,1766575840401,-2783.81155173,0.00012768,2]
[399631669,1766575840412,-2783.81155173,0.00012768,2]
[399631671,1766575840421,-2783.81155173,0.00012768,2]
[399631673,1766575840431,-2783.81155173,0.00012768,2]
[399631674,1766575840441,-2783.81155173,0.00012768,2]
[399631677,1766575840452,-2783.81155173,0.00012768,2]
[399631679,1766575840462,-2783.81155173,0.00012768,2]
[399631681,1766575840473,-2783.81155173,0.00012768,2]
[399631683,1766575840482,-2783.81155173,0.00012768,2]
[399631685,1766575840493,-2783.81155173,0.00012768,2]
[399631687,1766575840503,-2783.81155173,0.00012768,2]
[399631689,1766575840514,-2783.81155173,0.00012768,2]
[399631691,1766575840524,-2783.81155173,0.00012768,2]
[399631693,1766575840534,-2783.81155173,0.00012768,2]
[399631695,1766575840544,-2783.81155173,0.00012768,2]
[399631697,1766575840554,-2783.81155173,0.00012768,2]
[399631699,1766575840564,-2783.81155173,0.00012768,2]
[399631701,1766575840574,-2783.81155173,0.00012768,2]
[399631703,1766575840584,-2975.78800296,0.00012769,2]
[399631958,1766575843197,-500.0,0.00012765,2]
[399631961,1766575843209,-287.38445668,0.00012765,2]
[399631976,1766575843357,-212.61554332,0.00012765,2]
[399631978,1766575843368,-500.0,0.00012765,2]
[399631980,1766575843379,-500.0,0.00012765,2]
[399631982,1766575843390,-500.0,0.00012765,2]
[399631985,1766575843401,-574.0159996,0.00012765,2]
[399631987,1766575843411,-500.0,0.00012765,2]
[399631989,1766575843421,-500.0,0.00012765,2]
[399631991,1766575843431,-500.0,0.00012765,2]
[399631993,1766575843442,-500.0,0.00012765,2]
[399631995,1766575843452,-500.0,0.00012765,2]
[399631997,1766575843462,-500.0,0.00012765,2]
[399631999,1766575843472,-254.24278503,0.00012765,2]
[399632001,1766575843483,-500.0,0.00012765,2]
[399632003,1766575843493,-500.0,0.00012765,2]
[399632005,1766575843504,-614.66128013,0.00012765,2]
[399632007,1766575843514,-235.37072702,0.00012765,2]
[399632009,1766575843524,-500.0,0.00012765,2]
[399632011,1766575843535,-500.0,0.00012765,2]
[399632013,1766575843545,-500.0,0.00012765,2]
[399632015,1766575843557,-500.0,0.00012765,2]
[399632017,1766575843567,-500.0,0.00012765,2]
[399632019,1766575843577,-500.0,0.00012765,2]
[399632021,1766575843589,-500.0,0.00012765,2]
[399632023,1766575843600,-500.0,0.00012765,2]
[399632025,1766575843610,-500.0,0.00012765,2]
[399632027,1766575843619,-500.0,0.00012765,2]
[399632029,1766575843630,-188.98486923,0.00012765,2]
[399632185,1766575845948,-311.01513077,0.00012765,2]
[399632187,1766575845958,-500.0,0.00012765,2]
[399632189,1766575845969,-500.0,0.00012765,2]
[399632191,1766575845979,-451.21777855,0.00012765,2]
[399632193,1766575845990,-500.0,0.00012765,2]
[399632195,1766575846001,-500.0,0.00012765,2]
[399632197,1766575846011,-2039.54431375,0.00012769,2]
[399632199,1766575846024,-652.0,0.00012769,2]
[399632205,1766575846108,-3344.63255939,0.00012769,2]
[399632228,1766575910243,500.0,0.00032876,120]
[399632229,1766575910481,500.0,0.00032876,120]
[399632230,1766575910712,500.0,0.00032876,120]
[399632231,1766575911180,500.0,0.00032876,120]
[399632232,1766575911440,500.0,0.00032876,120]
[399632233,1766575911682,500.0,0.00032876,120]
[399632234,1766575911909,500.0,0.00032876,120]
[399632235,1766575912147,500.0,0.00032876,120]
[399632236,1766575912370,500.0,0.00032876,120]
[399632237,1766575912601,500.0,0.00032876,120]
[399632238,1766575912836,500.0,0.00032876,120]
[399632239,1766575913067,500.0,0.00032876,120]
[399632240,1766575913307,628.3891591,0.00032876,120]
[399632241,1766575913873,500.0,0.00032876,120]
[399632242,1766575914123,500.0,0.00032876,120]
[399632243,1766575914352,500.0,0.00032876,120]
[399632244,1766575914595,509.0127687,0.00032876,120]
[399632245,1766575915592,500.0,0.00032876,120]
[399632246,1766575915790,752.64,0.00032876,120]
[399632247,1766575916036,752.64,0.00032876,120]
[399632248,1766575916267,752.64,0.00032876,120]
[399632249,1766575916503,752.64,0.00032876,120]
[399632250,1766575916736,752.64,0.00032876,120]
[399632251,1766575916981,752.64,0.00032876,120]
[399632252,1766575917082,503.54,0.00032876,120]
[399632253,1766575917211,752.64,0.00032876,120]
[399632254,1766575917288,503.54,0.00032876,120]
[399632255,1766575917501,752.64,0.00032876,120]
[399632256,1766575917534,503.54,0.00032876,120]
[399632257,1766575917567,5105.04,0.00032876,120]
[399632258,1766575917791,5105.04,0.00032876,120]
[399632259,1766575917859,752.64,0.00032876,120]
[399632260,1766575918032,5105.04,0.00032876,120]
[399632261,1766575918108,752.64,0.00032876,120]
[399632262,1766575918264,5105.04,0.00032876,120]
[399632263,1766575918375,752.64,0.00032876,120]
[399632264,1766575918495,5105.04,0.00032876,120]
[399632265,1766575918620,752.64,0.00032876,120]
[399632266,1766575919256,5105.04,0.00032876,120]
[399632267,1766575919292,752.64,0.00032876,120]
[399632268,1766575919328,5105.04,0.00032876,120]
[399632269,1766575919361,752.64,0.00032876,120]
[399632270,1766575919395,5105.04,0.00032876,120]
[399632271,1766575919428,752.64,0.00032876,120]
[399632272,1766575919463,500.0,0.00032876,120]
[399632273,1766575919526,5105.04,0.00032876,120]
[399632274,1766575919572,752.64,0.00032876,120]
[399632275,1766575919688,500.0,0.00032876,120]
[399632276,1766575919759,5105.04,0.00032876,120]
[399632277,1766575919825,752.64,0.00032876,120]
[399632278,1766575919927,382.30011454,0.00032876,120]
[399632279,1766575919993,5105.04,0.00032876,120]
[399632280,1766575920080,752.64,0.00032876,120]
[399632281,1766575920269,5105.04,0.00032876,120]
[399632282,1766575920315,752.64,0.00032876,120]
[399632283,1766575920458,500.0,0.00032876,120]
[399632284,1766575920512,5105.04,0.00032876,120]
[399632285,1766575920555,752.64,0.00032876,120]
[399632286,1766575920696,500.0,0.00032876,120]
[399632287,1766575920739,5105.04,0.00032876,120]
[399632288,1766575920790,752.64,0.00032876,120]
[399632289,1766575920961,401.11375775,0.00032876,120]
[399632290,1766575920998,5105.04,0.00032876,120]
[399632291,1766575921035,752.64,0.00032876,120]
[399632292,1766575921627,5105.04,0.00032876,120]
[399632293,1766575921663,752.64,0.00032876,120]
[399632294,1766575921702,5105.04,0.00032876,120]
[399632295,1766575921735,752.68659068,0.00032876,120]
[399632296,1766575921768,503.54,0.00032876,120]
[399632297,1766575921805,5105.04,0.00032876,120]
[399632298,1766575921884,503.54,0.00032876,120]
[399632299,1766575922002,5105.04,0.00032876,120]
[399632300,1766575922153,503.54,0.00032876,120]
[399632301,1766575922271,5105.04,0.00032876,120]
[399632302,1766575922415,503.54,0.00032876,120]
[399632303,1766575922553,5105.04,0.00032876,120]
[399632304,1766575922658,503.54,0.00032876,120]
[399632305,1766575922730,500.0,0.00032876,120]
[399632306,1766575922797,5105.04,0.00032876,120]
[399632307,1766575922921,503.54,0.00032876,120]
[399632308,1766575922960,500.0,0.00032876,120]
[399632309,1766575923066,5105.04,0.00032876,120]
[399632310,1766575923166,503.54,0.00032876,120]
[399632311,1766575923208,500.0,0.00032876,120]
[399632312,1766575923397,5105.04689109,0.00032876,120]
[399632313,1766575923463,500.0,0.00032876,120]
[399632314,1766575923680,500.0,0.00032876,120]
[399632315,1766575923903,591.89,0.00032876,120]
[399632316,1766575923940,500.0,0.00032876,120]
[399632317,1766575924136,591.89,0.00032876,120]
[399632318,1766575924335,503.54,0.00032876,120]
[399632319,1766575924375,500.0,0.00032876,120]
[399632320,1766575924407,591.89,0.00032876,120]
[399632321,1766575924582,503.54,0.00032876,120]
[399632322,1766575924616,500.0,0.00032876,120]
[399632323,1766575924649,591.89,0.00032876,120]
[399632324,1766575924808,503.54,0.00032876,120]
[399632325,1766575924844,591.89,0.00032876,120]
[399632326,1766575924880,500.0,0.00032876,120]
[399632327,1766575925061,591.89,0.00032876,120]
[399632328,1766575925096,500.0,0.00032876,120]
[399632329,1766575925291,591.89,0.00032876,120]
[399632330,1766575925346,251.55973462,0.00032876,120]
[399632331,1766575925505,503.54,0.00032876,120]
[399632332,1766575925540,591.89,0.00032876,120]
[399632333,1766575925734,503.54,0.00032876,120]
[399632334,1766575925769,591.89,0.00032876,120]
[399632335,1766575925803,500.0,0.00032876,120]
[399632336,1766575925961,503.54,0.00032876,120]
[399632337,1766575925996,591.89,0.00032876,120]
[399632338,1766575926032,500.0,0.00032876,120]
[399632339,1766575926192,503.54,0.00032876,120]
[399632340,1766575926228,591.89,0.00032876,120]
[399632341,1766575926263,500.0,0.00032876,120]
[399632342,1766575926419,503.54,0.00032876,120]
[399632343,1766575926457,591.89,0.00032876,120]
[399632344,1766575926514,500.0,0.00032876,120]
[399632345,1766575926647,503.54,0.00032876,120]
[399632346,1766575926681,591.89,0.00032876,120]
[399632347,1766575926739,500.0,0.00032876,120]
[399632348,1766575926888,503.54,0.00032876,120]
[399632349,1766575927010,500.0,0.00032876,120]
[399632350,1766575927047,591.89,0.00032876,120]
[399632351,1766575927119,503.54,0.00032876,120]
[399632352,1766575927323,466.58315713,0.00032876,120]
[399632353,1766575927362,591.89,0.00032876,120]
[399632354,1766575927409,503.54,0.00032876,120]
[399632355,1766575927558,503.54,0.00032876,120]
[399632356,1766575927813,591.89,0.00032876,120]
[399632357,1766575927856,503.57666386,0.00032876,120]
[399632358,1766575927889,591.89,0.00032876,120]
[399632360,1766575928046,591.89,0.00032876,120]
[399632361,1766575928283,591.89,0.00032876,120]
[399632362,1766575928506,591.89,0.00032876,120]
[399632363,1766575928738,591.89,0.00032876,120]
[399632364,1766575929103,591.89,0.00032876,120]
[399632365,1766575929715,591.89,0.00032876,120]
[399632366,1766575929946,591.99184464,0.00032876,120]
[399632368,1766575933398,500.0,0.00032876,120]
[399632369,1766575933490,500.0,0.00032876,120]
[399632370,1766575933629,530.13304723,0.00032876,120]
[399632371,1766575933732,226.98373036,0.00032876,120]
[399632372,1766575935442,500.0,0.00032876,120]
[399632373,1766575935535,500.0,0.00032876,120]
[399632374,1766575935674,500.0,0.00032876,120]
[399632375,1766575935770,500.0,0.00032876,120]
[399632376,1766575935913,500.0,0.00032876,120]
[399632377,1766575935985,500.0,0.00032876,120]
[399632378,1766575936028,500.0,0.00032876,120]
[399632379,1766575936231,500.0,0.00032876,120]
[399632380,1766575936295,500.0,0.00032876,120]
[399632381,1766575936382,500.0,0.00032876,120]
[399632382,1766575936425,500.0,0.00032876,120]
[399632383,1766575936467,500.0,0.00032876,120]
[399632384,1766575936509,500.0,0.00032876,120]
[399632385,1766575936551,500.0,0.00032876,120]
[399632386,1766575936597,500.0,0.00032876,120]
[399632387,1766575936657,1612.5,0.00032876,120]
[399632388,1766575936699,500.0,0.00032876,120]
[399632389,1766575936740,472.26191871,0.00032876,120]
[399632390,1766575936778,500.0,0.00032876,120]
[399632391,1766575936821,500.0,0.00032876,120]
[399632392,1766575936869,500.0,0.00032876,120]
[399632393,1766575936910,500.0,0.00032876,120]
[399632394,1766575937263,500.0,0.00032876,120]
[399632395,1766575937303,500.0,0.00032876,120]
[399632396,1766575937347,500.0,0.00032876,120]
[399632397,1766575937384,500.0,0.00032876,120]
[399632398,1766575937421,500.0,0.00032876,120]
[399632399,1766575937457,500.0,0.00032876,120]
[399632400,1766575937493,1612.5,0.00032876,120]
[399632401,1766575937533,500.0,0.00032876,120]
[399632402,1766575937569,500.0,0.00032876,120]
[399632403,1766575937613,500.0,0.00032876,120]
[399632404,1766575937649,500.0,0.00032876,120]
[399632405,1766575937689,1612.5,0.00032876,120]
[399632406,1766575937724,500.0,0.00032876,120]
[399632407,1766575937760,500.0,0.00032876,120]
[399632408,1766575937809,500.0,0.00032876,120]
[399632409,1766575937855,1612.5,0.00032876,120]
[399632410,1766575937949,500.0,0.00032876,120]
[399632411,1766575937985,500.0,0.00032876,120]
[399632412,1766575938019,500.0,0.00032876,120]
[399632413,1766575938069,500.0,0.00032876,120]
[399632414,1766575938114,1612.5,0.00032876,120]
[399632415,1766575938151,462.3784369,0.00032876,120]
[399632416,1766575938212,500.0,0.00032876,120]
[399632417,1766575938249,500.0,0.00032876,120]
[399632418,1766575938285,500.0,0.00032876,120]
[399632419,1766575938321,500.0,0.00032876,120]
[399632420,1766575938361,1612.5,0.00032876,120]
[399632421,1766575938417,500.0,0.00032876,120]
[399632422,1766575938452,500.0,0.00032876,120]
[399632423,1766575938487,500.0,0.00032876,120]
[399632424,1766575938525,500.0,0.00032876,120]
[399632425,1766575938583,500.0,0.00032876,120]
[399632426,1766575938618,1612.5,0.00032876,120]
[399632427,1766575938660,580.85511602,0.00032876,120]
[399632428,1766575938696,585.46854804,0.00032876,120]